Cogmind - Beta 11 @@@ ROGUE MODE // 2022.03.28 @ 15:58:06 Player: ShuSh Result: Destroyed by as-80234 with Assembled F-torch Performance ------------- Evolutions (0) 0 Regions Visited (2) 400 Robots Destroyed (22) 110 Value Destroyed (592) 592 Prototype IDs (4) 80 Alien Tech Used (0) 0 Bonus (0) 0 TOTAL SCORE: 1182 Bonus ------- None Cogmind --------- Core Integrity 0/250 Matter 220/300 Energy 265/265 System Corruption 0% Temperature Cool (81) Movement Walking (260) Ox2 Location -10/Mines Parts ------- > --- POWER (1) -------- Reinforced Ion Engine > --- PROPULSION (2) --- Aluminum Leg Aluminum Leg > --- UTILITY (2) ------ High-capacity Storage Unit Targeting Computer > --- WEAPON (2) ------- Autogun Autogun > --- INVENTORY (20) --- Reinforced Ion Engine Reinforced Ion Engine Heat Sink Medium Matter Pod (100) High-capacity Matter Pod (161) High-powered Tractor Beam Assault Rifle Assault Rifle Assault Rifle Assault Rifle Rocket Launcher Rocket Launcher Maul Peak State ------------ > --- POWER ------------ Reinforced Ion Engine > --- PROPULSION ------- Light Treads Light Treads > --- UTILITY ---------- Large Storage Unit Targeting Computer > --- WEAPON ----------- Autogun Autogun > --- INVENTORY -------- Light Nuclear Core Aluminum Leg Aluminum Leg Heat Sink High-capacity Storage Unit Medium Matter Pod High-capacity Matter Pod High-powered Tractor Beam Assault Rifle Assault Rifle Assault Rifle Assault Rifle Autogun Autogun Rocket Launcher [Rating: 12] Favorites ----------- Power Reinforced Ion Engine Engine Reinforced Ion Engine Propulsion Light Treads Treads Light Treads Leg Aluminum Leg Utility Targeting Computer Storage Large Storage Unit Processor Targeting Computer Weapon Autogun Energy Gun Medium Laser Ballistic Gun Autogun Launcher Rocket Launcher Build | -11 -10 -10 ------- Run | Scr Mat Min Slots Evolved . | . . . Power . | . . . Propulsion . | . . . Utility . | . . . Weapon . | . . . Parts Attached 20 | . 14 6 Power 3 | . 3 . Engine 3 | . 3 . Core . | . . . Reactor . | . . . Propulsion 6 | . 4 2 Treads 4 | . 4 . Leg 2 | . . 2 Wheel . | . . . Hover . | . . . Flight . | . . . Utility 3 | . 3 . Device . | . . . Storage 2 | . 2 . Processor 1 | . 1 . Hackware . | . . . Protection . | . . . Artifact . | . . . Weapon 8 | . 4 4 Energy Gun . | . . . Energy Cannon . | . . . Ballistic Gun 7 | . 4 3 Ballistic Cannon . | . . . Launcher 1 | . . 1 Special Weapon . | . . . Impact Weapon . | . . . Slashing Weapon . | . . . Piercing Weapon . | . . . Special Melee Weapon . | . . . Unidentified Prototypes . | . . . Parts Lost 4 | . . 4 Power . | . . . Propulsion 2 | . . 2 Utility . | . . . Weapon 2 | . . 2 Highest Loss Streak 4 | . . 4 To Critical Strikes . | . . . Average Slot Usage (%) 97 | . 95 99 Engine 14 | . 14 14 Treads 27 | . 27 27 Storage 14 | . 14 14 Processor 11 | . 10 14 Energy Gun 4 | . 6 . Ballistic Gun 23 | . 21 25 Naked Turns . | . . . Heaviest Build 57 | 12 56 57 Greatest Support 40 | 20 40 40 Greatest Overweight (x) 2 | . 1 2 Average Overweight (x) . | . . 1 Largest Inventory Capacity 20 | . 20 20 Average Capacity 16 | . 15 20 Most Carried 17 | . 17 17 Average Carried 14 | . 13 16 Final Capacity 20 | 8 20 20 Final Carried 17 | 6 17 13 Class Distribution -------------------- 100% | Mutant Dominant Class ---------------- Mutant | -10/Materials Mutant | -10/Mines Resources | -11 -10 -10 ----------- Run | Scr Mat Min Matter Collected 859 | 200 459 200 Remotely . | . . . Salvage Created 662 | . 521 141 Parts 41 | . 26 15 Haulers Intercepted 1 | . 1 . Recyclers Shooed 1 | . 1 . Parts Field Recycled . | . . . Retrieved Matter . | . . . Parts Self-Destructed . | . . . Prevented . | . . . Kills | -11 -10 -10 ------- Run | Scr Mat Min Combat Hostiles Destroyed 21 | . 10 11 Guns 14 | . 9 5 AOE 6 | . . 6 Classes Destroyed 6 | . 3 3 Tunneler 1 | . 1 . Hauler 1 | . 1 . Swarmer 7 | . . 7 Grunt 12 | . 10 2 Demolisher 1 | . . 1 Assembled 1 | . . 1 Best Kill Streak 6 | . 4 6 Combat Bots Only 6 | . 2 6 Max Kills in Single Turn 2 | . 2 2 Gunslinging . | . . . Exploded 2 | . . 2 Melee . | . . . Uniques/NPCs Destroyed . | . . . Combat | -11 -10 -10 -------- Run | Scr Mat Min Damage Taken 1369 | . 510 859 Core 250 | . 62 188 Absorbed by Shields . | . . . Regen/Repaired (Parts) 109 | . 109 . Core Remaining (%) 100 | 100 . . Volleys Fired 51 | . 36 15 Largest 2 | . 2 2 Hottest 90 | . 90 46 Shots Fired 99 | . 72 27 Gun 96 | . 72 24 Cannon . | . . . Launcher 3 | . . 3 Special . | . . . Kinetic 79 | . 55 24 Thermal 16 | . 16 . Explosive 3 | . . 3 Electromagnetic 1 | . 1 . Robot Hit Streak 14 | . 14 8 Robot Miss Streak 3 | . 3 1 Penetration Max . | . . . Secondary Targets 2 | . 1 1 Max Gunslinging Chain 1 | . 1 1 Shots Hit Robots 75 | . 57 18 Core Hits 37 | . 24 13 Critical Kills . | . . . Critical Parts Destroyed 1 | . 1 . Critical Strikes 3 | . 3 . Burn 2 | . 2 . Destroy 1 | . 1 . Melee Attacks . | . . . Impact . | . . . Slashing . | . . . Piercing . | . . . Sneak Attacks . | . . . Combat Hostiles . | . . . Follow-up Attacks . | . . . Damage Inflicted 1440 | . 810 630 Guns 1066 | . 805 261 Cannons . | . . . Explosions 369 | . . 369 Melee . | . . . Ramming 5 | . 5 . Kinetic 869 | . 608 261 Thermal 197 | . 197 . Explosive 369 | . . 369 Electromagnetic . | . . . Impact . | . . . Slashing . | . . . Piercing . | . . . Highest Corruption . | . . . Average Corruption . | . . . Corruption Purged . | . . . Corruption Blocked . | . . . Overload Shots . | . . . Overflow Damage 67 | . . 67 Projectiles . | . . . Explosions 67 | . . 67 Melee . | . . . Knockbacks . | . . . Impact . | . . . Kinetic . | . . . Secondary . | . . . Self-Inflicted Damage 55 | . . 55 Shots 2 | . . 2 Rammed 2 | . 2 . Targets Rammed 2 | . 2 . Kicked . | . . . Crushed . | . . . Highest Temperature 207 | . 207 53 Average Temperature 47 | . 55 20 Received Heat Transfer 452 | . 261 191 Siege Activations . | . . . Robots Corrupted . | . . . Combat Hostiles . | . . . Parts Fried . | . . . Impact Corruptions . | . . . Robots Melted 1 | . 1 . Combat Hostiles 1 | . 1 . Parts Melted . | . . . Heat Transferred 740 | . 740 . Parts Sabotaged . | . . . Parts Stolen . | . . . Parts Stripped . | . . . Power Chain Reactions . | . . . Missiles Intercepted . | . . . Alert | -11 -10 -10 ------- Run | Scr Mat Min Peak Influence 371 | . 146 371 Initial 56 | . . 56 Average 140 | . 72 256 Maximum Alert Level 1 | . . 1 Low Security (%) 76 | . 100 37 Level 1 23 | . . 62 Level 2 . | . . . Level 3 . | . . . Level 4 . | . . . Level 5 . | . . . High Security . | . . . Max Security . | . . . Squads Dispatched 1 | . 1 . Investigation . | . . . Extermination . | . . . Reinforcement 1 | . 1 . Assault . | . . . Garrison . | . . . Intercept . | . . . Searches Triggered . | . . . Construction Impeded . | . . . Haulers Reinforced . | . . . Active Scanning Responses . | . . . Cargo Convoy Interrupts . | . . . Stealth | -11 -10 -10 --------- Run | Scr Mat Min Distress Signals 2 | . 2 . Communications Jammed . | . . . Distress Signals . | . . . Times Spotted 44 | . 19 25 Peak Tracking Total 12 | . 5 12 Tactical Retreats 2 | . . 2 Traps | -11 -10 -10 ------- Run | Scr Mat Min Traps Triggered 1 | . 1 . Indirectly . | . . . Trap Hack Attempts . | . . . Triggered . | . . . Disarmed . | . . . Reprogrammed . | . . . Reused . | . . . Traps Extracted . | . . . Installed . | . . . Triggered . | . . . Machines | -11 -10 -10 ---------- Run | Scr Mat Min Machines Disabled . | . . . Max in Single Turn . | . . . Machines Sabotaged . | . . . Garrisons Compromised . | . . . Overloaded Fab Kills . | . . . Hacking | -11 -10 -10 --------- Run | Scr Mat Min Machines Accessed 9 | . 9 . Terminals 7 | . 7 . Fabricators . | . . . Repair Stations 1 | . 1 . Recycling Units 1 | . 1 . Scanalyzers . | . . . Garrison Access . | . . . Total Hacks 31 | . 31 . Successful 16 | . 16 . Failed 15 | . 15 . Catastrophic . | . . . Database Lockouts . | . . . Manual 12 | . 12 . Terminals 24 | . 24 . Fabricators . | . . . Repair Stations 5 | . 5 . Recycling Units 2 | . 2 . Scanalyzers . | . . . Garrison Access . | . . . Terminal Hacks 8 | . 8 . Robot Analysis 3 | . 3 . Prototype ID Bank 2 | . 2 . Locate Traps 2 | . 2 . Dispatch Records 1 | . 1 . Fabricator Hacks . | . . . Repair Station Hacks 4 | . 4 . Scan Component 2 | . 2 . Repair 2 | . 2 . Recycling Unit Hacks . | . . . Scanalyzer . | . . . Garrison Access Hacks . | . . . Unauthorized Hacks 4 | . 4 . Terminals 4 | . 4 . Track 1 | . 1 . Assimilate 1 | . 1 . Botnet 2 | . 2 . Fabricators . | . . . Repair Stations . | . . . Recycling Units . | . . . Scanalyzers . | . . . Garrison Access . | . . . Data Cores Recovered . | . . . Used . | . . . Hacking Detections 7 | . 7 . Full Trace Events . | . . . Feedback Events . | . . . Feedback Blocked . | . . . Robot Schematics Acquired . | . . . Robots Built . | . . . Authchips . | . . . Time . | . . . Total Robot Build Rating . | . . . Part Schematics Acquired . | . . . Parts Built . | . . . Authchips . | . . . Time . | . . . Total Part Build Rating . | . . . Parts Repaired 2 | . 2 . Time 52 | . 52 . Parts Recycled . | . . . Recycled Matter . | . . . Retrieved Matter . | . . . Retrieved Components . | . . . Parts Scanalyzed . | . . . Part Schematics Acquired . | . . . Parts Damaged . | . . . Bothacking | -11 -10 -10 ------------ Run | Scr Mat Min Used RIF Installer . | . . . Robots Hacked . | . . . Non-combat . | . . . Combat . | . . . Robot Hacks Applied . | . . . Relay Couplers Released . | . . . Fabnet Peak Effective % . | . . . Robots Rewired . | . . . Allies Hacked . | . . . Hacks Repelled . | . . . Allies | -11 -10 -10 -------- Run | Scr Mat Min Total Allies . | . . . Largest Group . | . . . Highest-Rated Group . | . . . Highest-Rated Ally . | . . . Total Orders . | . . . Ally Attacks . | . . . Total Damage . | . . . Kills . | . . . Allies Corrupted . | . . . Allies Melted . | . . . Intel | -11 -10 -10 ------- Run | Scr Mat Min Robot Analysis Total 3 | . 3 . Derelict Logs Recovered 1 | . . 1 Drone Launches . | . . . Drone Recoveries . | . . . Exploration | -11 -10 -10 ------------- Run | Scr Mat Min Turns Passed 1712 | . 1080 632 Spaces Moved 751 | 1 506 244 Core . | . . . Treads 743 | . 499 244 Legs 8 | 1 7 . Wheels . | . . . Hover . | . . . Flight . | . . . Fastest Speed 120 | 120 120 240 Average Speed 191 | 120 168 240 Slowest Speed 320 | 120 240 320 Overloaded Moves . | . . . Propulsion Burnouts . | . . . Robots Hopped . | . . . Cave-ins Triggered . | . . . Exploration Rate (%) 54 | 2 99 63 Regions Visited 2 Branch Regions 1 Pre-discovered Areas . | . . . Known Exits Taken . | . . . Unknown Exits Taken 2 | 1 1 . Scrap Searched 1 | . . 1 Spaces Dug 9 | . . 9 Terrain Destroyed 31 | . . 31 Melee . | . . . Projectile . | . . . AOE 31 | . . 31 Terrain Rammed . | . . . Walls Destroyed . | . . . Machines Disabled . | . . . Actions | -11 -10 -10 --------- Run | Scr Mat Min Total 943 | . 675 268 Wait 84 | . 81 3 Move 749 | . 505 244 Hop . | . . . Pick Up 21 | . 21 . Fast Attach 4 | . 4 . Attach 4 | . . 4 Detach . | . . . Swap 12 | . 10 2 Drop 16 | . 16 . Fire 51 | . 36 15 Melee . | . . . Ram . | . . . Kick . | . . . Crush 2 | . 2 . Escape Stasis . | . . . Rewire . | . . . Trap . | . . . Miscellaneous . | . . . Route ------- -11/Scrapyard -10/Materials (discovered 5 exits: [*Mat x3] / [*Min x2]) -10/Mines (discovered 1 exit: [*Mat]) History --------- Turn | Location | Event 1 | -11/Scrapyard | Discovered new exit (range 0) 1 | -11/Scrapyard | Entered Materials 105 | -10/Materials | Discovered new exit (range 6) 318 | -10/Materials | Build established: Mutant 326 | -10/Materials | Discovered new exit (range 16) 460 | -10/Materials | Repaired Lgt. Treads 487 | -10/Materials | Repaired Lgt. Treads 540 | -10/Materials | Discovered new exit (range 6) 748 | -10/Materials | Discovered new exit (range 5) 1016 | -10/Materials | Discovered new exit (range 5) 1081 | -10/Materials | Entered Mines 1222 | -10/Mines | Discovered new exit (range 15) 1660 | -10/Mines | Assembled infested the area 1665 | -10/Mines | Assisted by a Guerilla fighting off Assembled 1666 | -10/Mines | Learned 4 Materials zone layouts 1699 | -10/Mines | Core integrity fell below 50% 1703 | -10/Mines | Core integrity fell below 20% 1713 | -10/Mines | Destroyed by as-80234 with Assembled F-torch Last Messages --------------- 01697_ as-29617 destroyed. 01697_ as-56860 destroyed. 01698_ Autogun destroyed. 01699_ The unstable cave ceiling collapses. 01702_ as-74391 destroyed. 01704_ The unstable cave ceiling collapses. 01707_ D-53 Grenadier suffers critical hit (Burn). 01707_ D-53 Grenadier destroyed. 01708_ D-53 Grenadier heat spikes uncontrollably. 01708_ The unstable cave ceiling collapses. 01708_ D-53 Grenadier overheating. 01709_ The unstable cave ceiling collapses. 01709_ D-53 Grenadier overheating. 01709_ Knocked back. 01710_ D-53 Grenadier overheating. 01712_ D-53 Grenadier heat damages Cmb. Airjet, Cmb. Airjet. 01712_ D-53 Grenadier critical meltdown. 01712_ as-89726 destroyed. 01712_ Switching to secondary target: as-59319. 01713_ Critical hit (Burn: +80). Map ----- +----------------------------------------------------+ | ##????? ????????????????????????????????????? | | #????# #???????????????????????????????????? | | #????# #???????????????????????????????????? | | ##????# #???????????????????????????????????? | | ##????# #???????????????????????????????????? | | ???? #???????????????????????????????????? | | #????# #???????????????????????????????????? | | ##???# #???????????????????????????????????? | | ###?# #???????????????????????????????????? | | ### #???????????????????????????????????? | | ## #???????????????????????????????????? | | ######??????????????????????????????? | | #?????????????? ??????????????? | | #?????????????# ??????????????? | | ## ### #????????#???? ???????????????? | | #### #?# #???????? ???# ???????????????? | | #??## ##?# ###?????? #?# ????????????????? | | ????## ##??# ######?#;# ????????????????? | | #????# #???### %=###%a ?????????????????? | | ##???# #?????# ####*## % ?????????????????? | | #???# #?????# ###?? %% #?????????????????? | | #???# #?????# #?## #a ##????????????????? | | #???# #?????# ### ####???????????????? | | ##???# #?????### a #???????????????? | | ###### #???????# ## #???????????????? | | ?# #???????# %@ #???????????????? | | ?# #???????#### # #???????????????? | | ?# #####??????????## # #???????????????? | | ## #???????????????# #??????????????? | | #???????????????## #??????????????? | | #####????????????????##### #??????????????? | | ?????????????????????????? #??????????????? | | ?????????????????????????? ??????????????? | | ?????????????????????????? ?????????????? | | ??????????????????????????? ????????????? | | ??????????????????????????? ##???????????? | | ??????????????????????????? ##????????????? | | ????????????????????????????####?????????????? | | ?????????????????????????????????????????????? | | ?????????????????????????????????????????????? | | ?????????????????????????????????????????????? | | ?????????????????????????????????????????????? | | ?????????????????????????????????????????????? | | | | | | | | | | | | | | | +----------------------------------------------------+ Best States ------------- Heat Dissipation 25 Energy Generation 12 Energy Capacity 265 Matter Stores 300 Matter Capacity 300 Sight Range 16 Terrain Scan Density 10 Evasion (%) 45 Targeting Accuracy 5 Recoil Reduction 2 Item Schematics ----------------- None Robot Schematics ------------------ None Fabricated ------------ Nothing Alien Tech Used ----------------- None Achievements -------------- None Challenges ------------ None Game ------ Seed MachineWardroneReconstructor Manual? 0 Play Time 00:16:51 Cumulative 196.3 hours Start 2022.03.28 @ 13:25:11 End 2022.03.28 @ 15:58:06 Sessions 2 Manual Loads 0 Difficulty Rogue Special Mode None Game No. 86 Rogue 81 Adventurer 5 Explorer 0 Win Type - Total 8 Types 6/0/1/1/0/0/0/0/0 Lore% 69 Gallery% 78 Achievement% 63 Wizard Run 0 Options --------- ASCII 0 Keyboard 0 Movement Numpad Keybinds 0 Fullscreen 2 Font 18/Terminus Map View 76x50 Tactical HUD 1 Map Filters NONE Filters NONE Steam 0 RUN: c733092a-2c19-4144-9beb-a1d494daf5c6